bitfinex/quotes_ETHUSD_20250508
["timestamp","ask_amount","ask_price","bid_price","bid_amount"]
[1746740645999,11.04638953,2177.8,2176.7,4.59408265]
[1746740646335,11.04638953,2177.8,2176.8,25.9563043]
[1746740646336,6.45450796,2177.8,2176.8,25.9563043]
[1746740646642,3.237877,2177.2,2177.1,4.59326627]
[1746740646803,3.95046989,2177.3,2177.1,12.40067127]
[1746740647021,0.86221679,2177.6,2177.5,19.12979075]
[1746740647219,4.86352387,2177.8,2177.7,8.14200073]
[1746740647439,4.62952387,2177.8,2177.7,17.51298567]
[1746740647735,1.15196493,2177.8,2177.7,18.20896525]
[1746740647917,6.20550796,2178.3,2178.2,4.59094665]
[1746740648119,6.20550796,2178.3,2178.2,17.101]
[1746740648335,6.04173928,2178.3,2178.2,21.14194665]
[1746740648534,1.81183928,2178.3,2178.2,24.69194665]
[1746740648747,0.06183928,2178.3,2178.2,8.05525742]
[1746740648917,4.2092401,2178.8,2178.4,11.14052515]
[1746740649356,9.05975664,2178.7,2178.6,5.14010373]
[1746740649516,9.05975664,2178.7,2178.3,3.0]
[1746740649717,4.58474868,2179.1,2179.0,7.58926112]
[1746740649923,2.72125137,2179.3,2179.2,5.13883994]
[1746740650123,6.04930885,2179.5,2179.4,10.58841883]
[1746740650347,3.66018761,2179.7,2179.5,4.5882083]
[1746740650560,2.73694008,2179.7,2179.6,7.58799779]
[1746740650857,2.45611341,2179.9,2179.8,4.58757684]
[1746740651061,2.45611341,2179.9,2179.8,9.38769111]
[1746740651260,8.80321623,2180.1,2180.0,4.58715596]
[1746740651458,6.40891623,2180.1,2180.0,8.83727023]
[1746740651767,6.40891623,2180.1,2179.4,25.23911427]
[1746740652068,6.40891623,2180.1,2179.4,16.544]
[1746740652069,8.15391603,2180.1,2179.4,16.544]
[1746740652218,4.5882083,2179.5,2179.4,16.544]
[1746740652842,5.41510724,2180.0,2179.4,16.544]
[1746740653048,4.5882083,2179.5,2179.4,16.544]
[1746740653257,4.5882083,2179.5,2178.2,4.59077178]
[1746740653258,4.58968442,2178.8,2178.5,16.535]
[1746740653555,4.5894902,2178.9,2178.6,0.04589295]
[1746740653755,4.5886989,2179.3,2178.5,16.535]
[1746740654061,4.58883994,2179.2,2178.5,16.535]
[1746740654362,4.58883994,2179.2,2178.2,7.405]
[1746740654363,4.59200073,2177.7,2177.6,16.535]
[1746740654859,4.59326627,2177.1,2177.0,7.372]
[1746740655059,4.59181503,2177.8,2176.7,16.535]
[1746740655060,4.64922276,2177.8,2177.4,4.85874955]
[1746740655364,4.5924225,2177.5,2177.4,4.85874955]
[1746740656123,4.59284434,2177.3,2177.2,5.7697651]
[1746740657253,0.8278,2177.9,2177.2,5.7697651]
[1746740658041,0.86949047,2178.4,2177.2,5.7697651]
[1746740658241,4.59094665,2178.2,2177.3,16.58191237]
[1746740658442,5.40268621,2178.4,2177.3,18.77116775]
[1746740658644,4.59195504,2177.8,2177.3,18.77116775]
[1746740658838,0.8121,2178.4,2177.3,18.77116775]
[1746740659034,9.61066966,2180.8,2177.6,0.7527]
[1746740659035,0.8121,2179.0,2177.6,0.7527]
[1746740659234,0.0573754,2179.2,2178.1,0.55]
[1746740659576,4.58968449,2178.8,2178.3,4.59066604]
[1746740659761,4.58968815,2178.8,2178.4,16.537]
[1746740659940,0.8121,2179.4,2178.4,16.537]
[1746740660380,4.58826491,2179.5,2178.5,0.7572]
[1746740660685,4.58757684,2179.8,2178.7,3.0]
[1746740660838,4.58874221,2179.3,2178.7,8.02058758]
[1746740661034,4.58778731,2179.7,2178.7,3.0]
[1746740661230,6.40891623,2180.1,2178.6,0.55]
[1746740661544,6.40891623,2180.1,2178.7,7.324]
[1746740661545,0.05733852,2180.0,2178.7,7.324]
[1746740661756,6.46626316,2180.1,2178.8,3.0]
[1746740662073,4.58837758,2179.5,2178.9,4.58931471]
[1746740662386,4.58842035,2179.4,2178.8,3.0]
[1746740662677,6.40891623,2180.1,2179.4,4.33398]
[1746740662832,4.58750593,2179.9,2179.5,17.2912]
[1746740663038,6.40891623,2180.1,2179.7,0.55]
[1746740663378,6.40891623,2180.1,2179.9,4.58717764]
[1746740663535,6.40891623,2180.1,2180.0,4.58715596]
[1746740663733,6.40891623,2180.1,2179.6,10.324]
[1746740663937,6.40891623,2180.1,2179.8,3.0]
[1746740664168,6.40891623,2180.1,2179.7,3.0]
[1746740664371,6.40891623,2180.1,2179.8,5.66574962]
[1746740664557,6.40891623,2180.1,2179.7,7.58768308]
[1746740664758,6.40891623,2180.1,2179.7,3.0]
[1746740664952,6.40891623,2180.1,2179.8,0.55]
[1746740665150,6.40891623,2180.1,2179.7,3.0]
[1746740665151,6.40891623,2180.1,2180.0,4.58715596]
[1746740665469,6.40891623,2180.1,2180.0,3.0]
[1746740665685,4.5877596,2179.8,2179.5,17.2912]
[1746740665887,4.58785552,2179.7,2179.5,17.2912]
[1746740666038,10.99593156,2180.1,2179.5,16.534]
[1746740666252,4.58799779,2179.6,2179.5,16.534]
[1746740666574,4.58782517,2179.7,2179.5,16.534]
[1746740666575,3.90397705,2180.1,2179.6,0.7723]
[1746740666776,2.87397705,2180.1,2180.0,4.58715596]
[1746740666965,2.87397705,2180.1,2180.0,7.58715596]
[1746740667476,4.58799779,2179.6,2179.5,16.534]
[1746740667665,2.87397705,2180.1,2179.1,0.7723]
[1746740667979,4.5882083,2179.5,2178.8,16.529]
[1746740668153,4.58940316,2179.0,2178.8,16.529]
[1746740668337,4.58947175,2178.9,2178.8,16.529]
[1746740669163,4.58902756,2179.2,2178.8,16.529]
[1746740669347,4.58909782,2179.1,2178.9,0.045888]
[1746740669543,0.7504,2179.6,2178.9,0.045888]
[1746740669744,4.5885192,2179.4,2178.9,6.24681424]
[1746740669950,4.58823285,2179.5,2179.0,4.589153]
[1746740670147,4.58791688,2179.7,2179.2,4.58881089]
[1746740670387,2.87397705,2180.1,2179.3,0.04585687]
[1746740670682,2.87397705,2180.1,2179.4,3.0]
[1746740670864,2.87397705,2180.1,2179.7,4.58764948]
[1746740671066,2.87397705,2180.1,2179.8,0.04583572]
[1746740671273,7.46107096,2180.1,2179.9,16.525]
[1746740671450,2.87397705,2180.1,2179.9,16.525]
[1746740671776,4.58715596,2180.0,2179.9,16.525]
[1746740672585,4.5882083,2179.5,2179.4,7.32]
[1746740672789,4.58883994,2179.2,2179.1,0.33567034]
[1746740673162,4.58905052,2179.1,2179.0,16.525]
[1746740673797,4.59021091,2178.6,2178.2,0.8155]
[1746740673992,0.05737017,2179.4,2178.2,0.8155]
[1746740674307,0.05736004,2179.8,2178.3,6.04588803]
[1746740674491,4.58867958,2179.3,2178.6,0.55]
[1746740674690,2.87397705,2180.1,2178.8,0.55]
[1746740674871,2.87397705,2180.1,2179.2,7.58867577]
[1746740675071,4.5878822,2179.7,2179.3,19.525]
[1746740675275,2.87397705,2180.1,2178.4,16.525]
[1746740675603,4.58981379,2178.8,2178.4,16.525]
[1746740675806,4.58890122,2179.2,2178.5,10.276]
[1746740675983,4.58980868,2178.8,2178.5,7.276]
[1746740676302,4.59010373,2178.6,2178.5,7.276]
[1746740676518,4.64549165,2179.6,2178.5,7.276]
[1746740676519,4.5882083,2179.5,2178.5,7.276]
[1746740676698,0.05735732,2179.5,2178.5,7.276]
[1746740676894,4.58948472,2178.9,2178.6,3.0]
[1746740677134,4.5868841,2180.2,2178.6,3.0]
[1746740677341,0.05735,2180.0,2178.6,3.0]
[1746740677497,4.5879597,2179.7,2178.7,0.55]
[1746740677698,4.58767721,2179.8,2179.3,4.58860267]
[1746740677924,2.87397705,2180.1,2179.4,7.276]
[1746740678122,4.58769421,2179.8,2179.5,16.526]
[1746740678431,4.58799779,2179.6,2179.5,16.526]
[1746740678736,4.58758401,2179.8,2179.5,16.526]
[1746740679233,4.58759459,2179.8,2179.5,16.526]
[1746740679597,2.87397705,2180.1,2179.5,16.526]
[1746740679810,4.58749262,2179.9,2179.5,16.526]
[1746740680019,4.58715596,2180.0,2179.5,16.526]
[1746740680233,4.58799779,2179.6,2179.5,16.526]
[1746740681124,4.58772187,2179.8,2179.5,16.526]
[1746740681726,4.58741911,2179.9,2179.5,16.526]
[1746740681727,4.58740734,2179.9,2179.5,16.526]
[1746740682336,2.87397705,2180.1,2179.9,4.58722001]
[1746740682536,2.87397705,2180.1,2179.6,3.0]
[1746740682901,2.87397705,2180.1,2179.8,4.58757646]
[1746740683132,2.87397705,2180.1,2180.0,8.39285596]
[1746740683641,1.00981339,2180.1,2180.0,5.39285596]
[1746740683822,1.00981339,2180.1,2179.6,0.8057]
[1746740683995,4.5874639,2179.9,2179.6,0.8057]
[1746740684332,4.58799779,2179.6,2179.5,16.526]
[1746740684532,4.58956883,2178.9,2178.6,7.086]
[1746740684943,4.58927161,2179.0,2178.6,7.086]
[1746740685235,4.58873729,2179.3,2178.8,4.58955824]
[1746740685402,4.58715596,2180.0,2178.8,4.58955824]
[1746740685403,0.8206,2180.2,2178.9,0.04587928]
[1746740685595,0.8206,2180.2,2179.2,0.777]
[1746740685804,5.596857,2180.1,2179.6,4.58788354]
[1746740685993,1.00981339,2180.1,2179.7,7.086]
[1746740686234,1.00981339,2180.1,2179.9,3.0]
[1746740686422,1.00981339,2180.1,2180.0,4.58715596]
[1746740686619,1.00981339,2180.1,2180.0,7.58715596]
[1746740687122,1.00981339,2180.1,2180.0,10.14775596]
[1746740687328,1.00981339,2180.1,2180.0,10.49230506]
[1746740687529,4.58716624,2180.0,2179.7,14.086]
[1746740687703,4.58725891,2180.0,2179.7,14.086]
[1746740687903,1.00981339,2180.1,2179.7,14.086]
[1746740688232,4.48757684,2179.8,2179.7,17.086]
[1746740688432,4.48757684,2179.8,2179.7,10.086]
[1746740688848,4.48757684,2179.8,2179.7,7.086]
[1746740689003,4.48757684,2179.8,2179.7,10.086]
[1746740689815,1.00981339,2180.1,2179.7,14.67377196]
[1746740690149,1.00981339,2180.1,2180.0,7.58715596]
[1746740690342,1e-08,2180.3,2180.2,7.58673516]
[1746740690546,0.01477762,2180.5,2180.3,7.58641598]
[1746740690861,4.60088823,2180.5,2180.4,7.085]
[1746740691020,0.01477762,2180.5,2180.4,10.085]
[1746740692137,4.60088172,2180.5,2180.4,7.085]
[1746740692637,0.01477762,2180.5,2180.4,7.085]
[1746740692841,0.01477762,2180.5,2180.4,14.67131443]
[1746740693149,0.01477762,2180.5,2180.4,10.085]
[1746740693302,0.01477762,2180.5,2180.4,7.085]
[1746740693508,0.01477762,2180.5,2180.4,6.95480639]
[1746740693707,0.01477762,2180.5,2180.4,6.909]
[1746740693929,4.58652479,2180.3,2180.2,0.04581692]
[1746740694135,0.01477762,2180.5,2180.2,6.909]
[1746740694318,4.58631443,2180.4,2180.3,0.04581746]
[1746740694662,0.01477762,2180.5,2180.2,6.909]
[1746740694948,4.60101435,2180.5,2180.3,0.04581591]
[1746740695147,4.58631604,2180.4,2180.2,6.909]
[1746740695317,0.01477762,2180.5,2180.2,6.909]
[1746740695520,0.01477762,2180.5,2180.3,0.04581567]
[1746740695830,0.01477762,2180.5,2180.2,6.909]
[1746740696055,0.01477762,2180.5,2180.3,3.0]
[1746740696435,0.01477762,2180.5,2180.3,7.5864086]
[1746740696672,0.01477762,2180.5,2180.3,3.0]
[1746740696875,0.01477762,2180.5,2180.4,3.0]
[1746740697195,0.01477762,2180.5,2180.4,11.08723843]
[1746740697338,0.01477762,2180.5,2180.4,3.0]
[1746740697745,0.01477762,2180.5,2180.2,13.732]
[1746740698138,0.01477762,2180.5,2180.3,3.0]
[1746740698749,4.60092819,2180.5,2180.3,3.0]
[1746740698972,0.01477762,2180.5,2180.3,3.0]
[1746740699174,0.01477762,2180.5,2180.4,11.35781443]
[1746740699331,5.63697447,2180.6,2180.5,7.5861041]
[1746740699525,5.63697447,2180.6,2180.5,8.1361041]
[1746740699972,3.34337545,2180.6,2180.5,8.1361041]
[1746740700267,1.6335797,2180.6,2180.5,10.7660752]
[1746740700572,0.82171163,2180.6,2180.5,10.7660752]
[1746740700784,0.59060523,2180.6,2180.5,10.7660752]
[1746740700932,0.18456414,2180.6,2180.5,10.7660752]
[1746740701361,9.0949885,2180.8,2180.7,13.88768349]
[1746740701548,8.45549712,2180.8,2180.7,42.23313331]
[1746740701850,0.5591504,2180.8,2180.7,55.80050176]
[1746740702068,9.97514868,2181.2,2181.1,7.58484251]
[1746740702251,14.55978099,2181.2,2181.1,6.906]
[1746740703077,9.97514868,2181.2,2180.7,16.514]
[1746740703374,9.97514868,2181.2,2181.1,9.906]
[1746740703596,9.97514868,2181.2,2181.1,6.906]
[1746740703816,9.97514868,2181.2,2181.1,15.73144251]
[1746740704164,9.97514868,2181.2,2181.1,16.50614251]
[1746740704367,9.63127393,2181.2,2181.1,16.50614251]
[1746740704806,9.63127393,2181.2,2181.1,21.32114251]
[1746740704965,8.50205929,2181.2,2181.1,21.32114251]
[1746740705895,10.85530885,2181.6,2181.5,12.94900183]
[1746740706099,10.85530885,2181.6,2181.5,16.60051818]
[1746740706263,10.85530885,2181.6,2181.5,17.15051818]
[1746740706664,10.85530885,2181.6,2181.5,7.0288997]
[1746740706898,10.85530885,2181.6,2181.5,11.61290153]
[1746740707165,0.01294602,2182.1,2181.6,3.0]
[1746740707389,4.58307706,2182.0,2181.6,3.0]
[1746740707593,0.01294602,2182.1,2181.6,3.0]
[1746740707770,0.01294602,2182.1,2181.7,0.04572541]
[1746740707970,4.58304085,2182.0,2181.7,0.04572541]
[1746740708402,4.59580065,2182.1,2181.6,7.58373202]
[1746740708562,4.58296713,2182.0,2181.6,3.0]
[1746740708760,4.58304333,2182.0,2181.6,3.0]
[1746740708990,0.01294602,2182.1,2181.7,4.58356941]
[1746740709193,0.01294602,2182.1,2181.8,21.09330934]
[1746740709463,4.58295142,2182.0,2181.9,6.73]
[1746740710267,4.58220892,2182.4,2181.9,6.73]
[1746740710602,4.57985665,2183.5,2181.2,14.28024885]
[1746740710603,4.58424224,2181.4,2181.3,6.729]
[1746740710767,4.58421197,2181.4,2181.3,6.729]
[1746740711181,0.8091,2182.0,2181.3,9.729]
[1746740711405,4.5840883,2181.5,2181.3,6.729]
[1746740711593,0.8091,2182.0,2181.3,6.729]
[1746740711930,4.58408872,2181.5,2181.4,6.729]
[1746740712377,4.58408872,2181.5,2181.4,6.77475531]
[1746740712578,4.58408872,2181.5,2181.4,6.729]
[1746740712785,4.58387706,2181.6,2181.4,6.729]
[1746740713018,0.8091,2182.0,2181.5,0.0457556]
[1746740713220,4.58359503,2181.7,2181.5,0.0457556]
[1746740713710,4.58379171,2181.6,2181.5,0.0457556]
[1746740714019,4.58326362,2181.9,2181.5,3.0457556]
[1746740714191,0.8091,2182.0,2181.5,3.0457556]
[1746740714592,4.5835316,2181.8,2181.5,0.0457556]
[1746740714900,4.58320562,2181.9,2181.5,3.0457556]
[1746740715506,4.58320562,2181.9,2181.5,9.524069]
[1746740715829,4.58306492,2182.0,2181.5,9.524069]
[1746740716027,4.58306447,2182.0,2181.5,9.52398438]
[1746740716229,4.58306447,2182.0,2181.5,9.47820288]
[1746740716389,5.36937396,2182.4,2181.6,3.0]
[1746740716591,4.58309343,2182.0,2181.6,3.0]
[1746740716828,4.58314174,2182.0,2181.6,3.0]
[1746740717025,4.58272487,2182.2,2181.7,4.62913209]
[1746740717259,5.36707355,2182.8,2181.7,5.85052847]
[1746740717401,4.5824446,2182.3,2181.8,4.58337129]
[1746740717603,4.58219241,2182.4,2181.7,7.76503654]
[1746740717604,4.5826902,2182.2,2181.7,12.3027989]
[1746740717789,4.58148165,2182.7,2181.8,3.0]
[1746740717989,0.7858,2182.8,2182.0,3.0]
[1746740718302,0.7858,2182.8,2182.1,16.507]
[1746740718518,4.58148165,2182.7,2182.2,6.559]
[1746740718720,4.5823214,2182.3,2182.2,6.559]
[1746740718926,4.58221887,2182.4,2182.2,6.559]
[1746740719126,4.5823214,2182.3,2182.2,6.559]
[1746740719312,4.58223874,2182.4,2182.2,6.559]
[1746740719713,4.58206093,2182.5,2182.2,6.559]
[1746740719913,4.58218204,2182.4,2182.2,6.559]
[1746740720250,0.05726883,2183.0,2182.2,6.559]
[1746740720559,4.58220056,2182.4,2182.2,6.559]
[1746740720725,4.58201019,2182.5,2182.2,6.559]
[1746740720919,4.5821958,2182.4,2182.2,6.559]
[1746740721137,4.5821251,2182.4,2182.2,12.964]
[1746740721450,4.58171663,2182.6,2182.2,15.9111]
[1746740721609,4.63818948,2183.0,2182.3,3.04570521]
[1746740721808,0.84306387,2183.1,2182.3,3.04570521]
[1746740722049,4.58182613,2182.6,2182.3,3.04570521]
[1746740722346,0.84306731,2183.1,2182.3,3.04570521]
[1746740722548,4.58184577,2182.6,2182.3,3.04570521]
[1746740722713,4.58140995,2182.8,2182.3,3.04570521]
[1746740722909,4.58085203,2183.0,2182.4,6.387]
[1746740723120,4.58190148,2182.5,2182.4,6.387]
[1746740723544,5.36644294,2183.1,2182.4,6.387]
[1746740723745,4.58169156,2182.6,2182.5,3.0456986]
[1746740723947,4.58169156,2182.6,2182.5,3.0]
[1746740724137,4.58168171,2182.7,2182.5,3.0]
[1746740724332,4.58169156,2182.6,2182.5,3.0]
[1746740725636,0.7813,2183.7,2182.7,3.0]
[1746740725837,0.7813,2183.7,2182.7,7.58132162]
[1746740725838,4.58044493,2183.2,2182.7,7.58132162]
[1746740726048,4.58074686,2183.1,2182.7,3.0]
[1746740726451,4.58054571,2183.2,2182.7,7.58143853]
[1746740726629,4.58034575,2183.3,2182.9,3.0]
[1746740727037,4.58001811,2183.4,2182.7,4.38151495]
[1746740727225,0.7813,2183.7,2182.9,3.0]
[1746740727445,4.57998789,2183.5,2183.0,0.04566542]
[1746740727645,0.7813,2183.7,2183.0,0.04566542]
[1746740727859,4.58000692,2183.5,2183.0,0.04566542]
[1746740728156,0.7813,2183.7,2183.0,0.80832975]
[1746740728456,0.7813,2183.7,2183.1,13.96663784]
[1746740728457,4.57953469,2183.7,2183.1,13.96663784]
[1746740728676,0.85574061,2184.2,2183.2,0.04565165]
[1746740728877,0.7985,2184.2,2183.5,3.0]
[1746740729174,4.57879506,2184.0,2183.5,3.0]
[1746740729471,4.58001282,2183.4,2183.3,6.386]
[1746740729791,5.37851282,2183.4,2183.3,6.386]
[1746740730367,4.58138627,2182.8,2182.7,16.5]
[1746740730566,4.58138627,2182.8,2182.7,22.886]
[1746740731125,0.05726304,2183.3,2182.7,22.886]
[1746740731126,4.53117396,2182.9,2182.8,3.0]
[1746740731527,0.7985,2183.4,2182.8,3.0]
[1746740731727,4.58034838,2183.3,2182.8,3.0]
[1746740731928,4.58003607,2183.4,2182.8,10.41729085]
[1746740732168,0.85574773,2183.9,2183.0,3.0]
[1746740732403,4.57955293,2183.7,2183.3,3.0]
[1746740732602,4.57934111,2183.8,2183.4,0.04564789]
[1746740732887,4.57856431,2184.1,2183.6,3.0]
[1746740733091,4.57872976,2184.1,2183.6,3.0]
[1746740733275,4.57893999,2184.0,2183.6,3.0]
[1746740733476,4.57857199,2184.1,2183.6,3.0]
[1746740733683,4.57835826,2184.2,2183.7,4.57928384]
[1746740733882,4.57835826,2184.2,2183.8,16.497]
[1746740734092,0.05722497,2184.9,2183.8,16.497]
[1746740734093,4.5768685,2184.9,2184.0,4.57866959]
[1746740734388,4.57747118,2184.7,2184.1,7.57842671]
[1746740734568,4.5776738,2184.6,2184.1,7.57851417]
[1746740734768,4.57707799,2184.8,2184.0,6.218]
[1746740734994,0.05721425,2184.9,2184.0,6.218]
[1746740734995,4.57760782,2184.6,2184.1,4.57843318]
[1746740735150,4.57779889,2184.5,2184.1,0.04560055]
[1746740735356,4.57896423,2183.9,2183.8,16.497]
[1746740735677,4.57896423,2183.9,2183.8,22.716]
[1746740735994,4.57886332,2184.0,2183.8,22.716]
[1746740736189,4.57865862,2184.1,2183.8,22.716]
[1746740736487,0.0572297,2184.6,2183.8,22.716]
[1746740736488,4.57842892,2184.2,2183.8,22.716]
[1746740736690,4.57846211,2184.2,2183.8,22.716]
[1746740736855,4.57785027,2184.5,2183.9,3.0]
[1746740737059,4.57803797,2184.4,2183.9,7.57886802]
[1746740737288,4.57812428,2184.4,2184.0,0.04561772]
[1746740737498,4.57886607,2184.0,2183.8,22.716]
[1746740737697,4.578583,2184.1,2183.8,22.716]
[1746740737903,0.05722742,2184.8,2183.8,22.716]
[1746740738071,4.6343905,2184.8,2183.8,22.716]
[1746740738257,4.57863774,2184.1,2183.8,22.716]
[1746740738457,4.57843291,2184.2,2183.8,22.716]
[1746740738765,4.57868808,2184.1,2183.8,22.716]
[1746740738985,4.57889067,2184.0,2183.8,22.716]
[1746740739209,4.57859744,2184.1,2183.8,22.716]
[1746740739500,4.57864297,2184.1,2183.8,22.716]
[1746740739795,4.57857487,2184.1,2183.8,22.716]
[1746740740091,4.57853796,2184.2,2183.9,3.0]
[1746740740254,4.57834501,2184.2,2184.0,0.04562312]
[1746740740455,4.57831903,2184.3,2184.0,0.04562312]
[1746740740753,0.8083,2185.6,2184.9,4.57675957]
[1746740740959,4.57593225,2185.4,2185.0,23.43143726]
[1746740741183,4.57586026,2185.4,2185.1,6.26355715]
[1746740741455,4.5756733,2185.5,2185.1,7.26569716]
[1746740741655,4.57624016,2185.2,2185.1,6.91803962]
[1746740741960,4.57624016,2185.2,2185.1,6.26355715]
[1746740742182,4.57614536,2185.3,2185.1,6.26355715]
[1746740742496,4.5760567,2185.3,2185.1,6.26355715]
[1746740742852,4.57590837,2185.4,2185.1,6.26355715]
[1746740743058,4.57616782,2185.3,2185.1,6.26355715]
[1746740743270,4.57624016,2185.2,2185.1,6.26355715]
[1746740743496,4.57586356,2185.4,2185.1,6.26355715]
[1746740743701,0.8083,2185.6,2185.1,6.26355715]
[1746740743898,4.57616438,2185.3,2185.1,6.26355715]
[1746740744274,6.112,2186.5,2185.1,6.26355715]
[1746740744275,4.57597046,2185.4,2185.1,6.26355715]
[1746740744472,4.57619405,2185.3,2185.1,6.26355715]
[1746740744671,5.38370366,2185.6,2185.1,6.26355715]
[1746740744874,4.57610054,2185.3,2185.1,6.26355715]
[1746740745178,4.5761968,2185.3,2185.1,6.26355715]
[1746740745482,0.8083,2185.6,2185.1,6.218]
[1746740745685,4.57624016,2185.2,2185.1,6.218]
[1746740746268,4.57609554,2185.3,2185.1,6.218]
[1746740746459,4.57624016,2185.2,2185.1,6.218]
[1746740747806,4.57587193,2185.4,2185.1,6.26356038]
[1746740747807,4.57591417,2185.4,2185.1,6.26356038]
[1746740748003,4.57613155,2185.3,2185.1,6.26356038]
[1746740748177,4.57610108,2185.3,2185.1,6.218]
[1746740748505,4.57592024,2185.4,2185.1,6.218]
[1746740748914,4.59764007,2185.3,2185.1,6.218]
[1746740749065,0.02159684,2185.3,2185.1,6.218]
[1746740749271,4.59767159,2185.3,2185.1,6.218]
[1746740749475,4.59767159,2185.3,2185.2,0.04556]
[1746740749982,0.02159684,2185.3,2185.2,0.04556]
[1746740750196,0.02159684,2185.3,2185.2,3.04556]
[1746740750877,0.02159684,2185.3,2185.2,5.65565893]
[1746740751083,0.02159684,2185.3,2185.2,3.04556]
[1746740751271,0.02159684,2185.3,2185.2,0.04556]
[1746740751471,0.02159684,2185.3,2185.2,3.04556]
[1746740751668,4.59762759,2185.3,2185.2,9.09455295]
[1746740752070,0.02159684,2185.3,2185.2,9.049]
[1746740752505,0.02159684,2185.3,2185.2,9.8008]
[1746740752690,0.02159684,2185.3,2185.2,11.47337077]
[1746740752866,0.02159684,2185.3,2185.2,8.72137077]
[1746740753071,0.02159684,2185.3,2185.2,13.34316594]
[1746740753269,0.02159684,2185.3,2185.2,16.7735218]
[1746740754893,0.02159684,2185.3,2185.2,19.7917158]
[1746740755473,0.02159684,2185.3,2185.2,24.9297048]
[1746740755781,0.02159684,2185.3,2185.2,28.94375103]
[1746740755992,0.02159684,2185.3,2185.2,31.39140103]
[1746740756173,0.02159684,2185.3,2185.2,34.60487466]
[1746740756579,0.02159684,2185.3,2185.2,37.15985066]
[1746740756785,0.02159684,2185.3,2185.2,39.91185066]
[1746740757197,0.02159684,2185.3,2185.2,39.88385066]
[1746740757395,0.02159684,2185.3,2185.2,19.80172703]
[1746740757617,0.02159684,2185.3,2185.2,17.07084016]
[1746740758203,0.02159684,2185.3,2185.2,26.31094626]
[1746740758797,0.02159684,2185.3,2185.2,23.31094626]
[1746740759003,0.02159684,2185.3,2185.2,11.64594626]
[1746740759311,0.02159684,2185.3,2185.2,48.11927079]
[1746740759522,4.57351932,2186.5,2185.3,3.0]
[1746740759689,4.57531174,2185.7,2185.4,5.92554362]
[1746740759898,0.05718827,2186.2,2185.4,5.92554362]
[1746740760220,4.57461874,2186.0,2185.6,3.0]
[1746740760408,4.5744158,2186.1,2185.6,3.0]
[1746740760615,0.05718198,2186.6,2185.5,3.0]
[1746740761185,4.57444519,2186.1,2185.5,7.57552006]
[1746740761382,4.57444519,2186.1,2185.6,4.62082436]
[1746740761383,4.57445872,2186.1,2185.6,4.62082436]
[1746740761594,4.57445872,2186.1,2185.6,4.57529718]
[1746740761831,0.05717821,2186.4,2185.6,4.57521165]
[1746740762032,4.57438613,2186.1,2185.7,3.0]
[1746740762228,4.57435643,2186.1,2185.8,0.0455272]
[1746740762447,4.57435643,2186.1,2185.7,3.0]
[1746740762649,4.57435643,2186.1,2185.4,5.88]
[1746740762650,4.57435643,2186.1,2185.5,7.57545444]
[1746740762947,4.57435643,2186.1,2185.4,16.21472696]
[1746740762948,4.57529818,2185.7,2185.4,11.639]
[1746740763145,4.57507685,2185.8,2185.4,11.639]
[1746740763146,4.5751162,2185.8,2185.4,11.639]
[1746740763348,4.57480639,2185.9,2185.5,7.6211167]
[1746740763553,4.57462938,2186.0,2185.6,16.25]
[1746740763713,4.57453421,2186.1,2185.6,16.25]
[1746740763914,4.57465108,2186.0,2185.6,16.25]
[1746740764125,4.57465108,2186.0,2185.6,20.82538265]
[1746740764442,4.57477473,2185.9,2185.6,16.25]
[1746740765348,4.5739377,2186.3,2185.6,16.25]
[1746740765507,4.57509214,2185.8,2185.7,6.11]
[1746740765710,4.57509214,2185.8,2185.6,16.25]
[1746740765947,4.5751933,2185.7,2185.6,19.25]
[1746740766158,4.57510888,2185.8,2185.7,3.0]
[1746740766655,4.57488493,2185.9,2185.7,19.477]
[1746740766820,4.57490303,2185.9,2185.7,19.477]
[1746740767228,4.57498398,2185.8,2185.7,19.477]
[1746740767841,4.5748601,2185.9,2185.7,19.477]
[1746740768045,4.57498398,2185.8,2185.7,19.477]
[1746740768533,4.57486971,2185.9,2185.7,19.477]
[1746740769762,4.57469332,2186.0,2185.7,23.0497]
[1746740770938,4.57469332,2186.0,2185.8,5.75653459]
[1746740770939,4.57467182,2186.0,2185.8,5.75653459]
[1746740771138,4.57442484,2186.1,2185.9,3.0]
[1746740771378,4.57442484,2186.1,2185.8,3.045532]
[1746740771546,4.57465212,2186.0,2185.9,6.11]
[1746740771745,4.57447567,2186.1,2185.9,11.821]
[1746740771978,4.57448413,2186.1,2185.9,11.821]
[1746740772993,4.57448413,2186.1,2185.9,5.711]
[1746740773282,4.57477469,2185.9,2185.8,19.25]
[1746740773484,4.57399542,2186.3,2185.8,24.96]
[1746740773689,0.05717921,2186.4,2185.9,3.0]
[1746740773904,4.57456541,2186.0,2185.9,3.0]
[1746740774055,4.57445686,2186.1,2185.9,3.04553218]
[1746740774256,4.57445686,2186.1,2185.9,3.0]
[1746740774586,4.57429642,2186.2,2185.9,3.0]
[1746740774587,0.05717706,2186.4,2185.9,3.0]
[1746740774786,4.57435615,2186.1,2186.0,5.75552032]
[1746740774999,4.57435615,2186.1,2186.0,5.71]
[1746740775202,4.57435615,2186.1,2186.0,8.71]
[1746740775501,4.57410269,2186.3,2186.1,3.0]
[1746740776008,4.5739678,2186.3,2186.1,3.0]
[1746740776300,0.8266,2186.7,2186.1,3.87555196]
[1746740776500,0.8266,2186.7,2186.1,3.0]
[1746740776667,4.5739377,2186.3,2186.2,8.71]
[1746740777365,4.57332195,2186.6,2186.3,3.0]
[1746740777366,4.57365551,2186.5,2186.3,3.0]
[1746740777569,4.57365551,2186.5,2186.3,19.25]
[1746740777769,4.57365551,2186.5,2186.4,16.25]
[1746740777995,4.57365551,2186.5,2186.4,19.25]
[1746740780313,4.57331062,2186.6,2186.5,3.0]
[1746740780314,4.57343752,2186.6,2186.5,3.0]
[1746740781007,0.7989,2187.6,2186.5,3.04550082]
[1746740781176,4.57291033,2186.8,2186.5,19.29550082]
[1746740781379,4.57291033,2186.8,2186.5,22.09430043]
[1746740781380,4.57299077,2186.8,2186.5,22.09430043]
[1746740781692,4.57280353,2186.9,2186.6,16.25]
[1746740781999,4.57305064,2186.8,2186.6,16.25]